[Event "*** Titled Tuesday Blitz"]
[Site "Chess.com"]
[Date "2021.04.06"]
[Round "7"]
[White "Ze-Pequeno"]
[Black "DrCeltic"]
[Result "1-0"]
[WhiteElo "2274"]
[BlackElo "2465"]
[TimeControl "180+1"]
[EndTime "11:18:35 PDT"]
[Termination "Ze-Pequeno won by checkmate"]

1. e4 {[%clk 0:03:00.1]} 1... c5 {[%clk 0:02:59.2]} 2. Nf3 {[%clk 0:02:59.6]}
2... e6 {[%clk 0:02:59.4]} 3. d4 {[%clk 0:02:59.2]} 3... cxd4 {[%clk 0:03:00.3]}
4. Nxd4 {[%clk 0:02:59.5]} 4... a6 {[%clk 0:03:01.2]} 5. Bd3 {[%clk 0:02:58.8]}
5... d6 {[%clk 0:02:58.8]} 6. O-O {[%clk 0:02:57.8]} 6... Nf6 {[%clk 0:02:59]}
7. c4 {[%clk 0:02:57.6]} 7... Be7 {[%clk 0:02:58.7]} 8. Nc3 {[%clk 0:02:57.5]}
8... O-O {[%clk 0:02:58.5]} 9. Bd2 {[%clk 0:02:56.1]} 9... Nbd7 {[%clk
0:02:57.8]} 10. Qe2 {[%clk 0:02:53.4]} 10... Qc7 {[%clk 0:02:57.2]} 11. f4
{[%clk 0:02:52.5]} 11... Nc5 {[%clk 0:02:43.3]} 12. Bc2 {[%clk 0:02:50.6]} 12...
b6 {[%clk 0:02:40.5]} 13. Rae1 {[%clk 0:02:48.3]} 13... Bb7 {[%clk 0:02:24.4]}
14. e5 {[%clk 0:02:41.4]} 14... Nfd7 {[%clk 0:02:21.3]} 15. b4 {[%clk
0:02:39.4]} 15... dxe5 {[%clk 0:02:20]} 16. fxe5 {[%clk 0:02:37.9]} 16... Rad8
{[%clk 0:02:11.8]} 17. Nf3 {[%clk 0:02:17.3]} 17... Bxf3 {[%clk 0:02:07.6]} 18.
Rxf3 {[%clk 0:02:15.8]} 18... Nb7 {[%clk 0:02:02.8]} 19. Bxh7+ {[%clk 0:02:13]}
19... Kxh7 {[%clk 0:01:55.3]} 20. Rh3+ {[%clk 0:02:11.5]} 20... Kg8 {[%clk
0:01:55.7]} 21. Qh5 {[%clk 0:02:10.8]} 21... f6 {[%clk 0:01:55]} 22. Qh7+ {[%clk
0:01:44.6]} 22... Kf7 {[%clk 0:01:53.9]} 23. Rg3 {[%clk 0:01:42.5]} 23... Rg8
{[%clk 0:01:47.5]} 24. Qg6+ {[%clk 0:01:20.7]} 24... Kf8 {[%clk 0:01:44.6]} 25.
Bh6 {[%clk 0:01:18.9]} 25... Nxe5 {[%clk 0:01:22.3]} 26. Bxg7+ {[%clk
0:01:16.8]} 26... Rxg7 {[%clk 0:01:22.6]} 27. Qxg7+ {[%clk 0:01:15.4]} 27... Ke8
{[%clk 0:01:23.3]} 28. Qg8+ {[%clk 0:00:56.6]} 28... Kd7 {[%clk 0:01:22.6]} 29.
Rd1+ {[%clk 0:00:56.8]} 29... Kc8 {[%clk 0:01:13.9]} 30. Qxe6+ {[%clk 0:00:54]}
30... Kb8 {[%clk 0:01:14.2]} 31. Nd5 {[%clk 0:00:41.4]} 31... Rxd5 {[%clk
0:00:56.5]} 32. Qxd5 {[%clk 0:00:36.4]} 32... Bxb4 {[%clk 0:00:51.8]} 33. Rg8+
{[%clk 0:00:33.9]} 33... Ka7 {[%clk 0:00:51.5]} 34. Kh1 {[%clk 0:00:33.8]} 34...
Qc5 {[%clk 0:00:37.5]} 35. Qxc5 {[%clk 0:00:29.5]} 35... Bxc5 {[%clk 0:00:32.7]}
36. h4 {[%clk 0:00:30.4]} 36... Nxc4 {[%clk 0:00:31.5]} 37. h5 {[%clk
0:00:29.4]} 37... Be3 {[%clk 0:00:29.6]} 38. Rd7 {[%clk 0:00:23.4]} 38... Ne5
{[%clk 0:00:28.9]} 39. Re7 {[%clk 0:00:22]} 39... Bh6 {[%clk 0:00:20.6]} 40. Rh8
{[%clk 0:00:19]} 40... Bg5 {[%clk 0:00:19]} 41. Rhh7 {[%clk 0:00:18.3]} 41... a5
{[%clk 0:00:19.5]} 42. Rxb7+ {[%clk 0:00:17.6]} 42... Ka6 {[%clk 0:00:20.4]} 43.
a4 {[%clk 0:00:18]} 43... b5 {[%clk 0:00:19.1]} 44. axb5# {[%clk 0:00:18]} 1-0

[Event "*** Titled Tuesday Blitz"]
[Site "Chess.com"]
[Date "2021.04.06"]
[Round "7"]
[White "Camels1981"]
[Black "Yaryi_sergey"]
[Result "1-0"]
[WhiteElo "2382"]
[BlackElo "2507"]
[TimeControl "180+1"]
[EndTime "11:18:35 PDT"]
[Termination "Camels1981 won by resignation"]

1. e4 {[%clk 0:03:00.9]} 1... c6 {[%clk 0:02:57.9]} 2. d4 {[%clk 0:03:00.4]}
2... Na6 {[%clk 0:02:57.6]} 3. Bxa6 {[%clk 0:02:57.4]} 3... Qa5+ {[%clk
0:02:56.9]} 4. Nc3 {[%clk 0:02:52]} 4... Qxa6 {[%clk 0:02:57.8]} 5. Qe2 {[%clk
0:02:51.8]} 5... b6 {[%clk 0:02:57.2]} 6. Qxa6 {[%clk 0:02:46.7]} 6... Bxa6
{[%clk 0:02:56.8]} 7. Nge2 {[%clk 0:02:42.6]} 7... g6 {[%clk 0:02:56.5]} 8. O-O
{[%clk 0:02:40.6]} 8... Bg7 {[%clk 0:02:55.8]} 9. Rd1 {[%clk 0:02:40]} 9... e6
{[%clk 0:02:54]} 10. d5 {[%clk 0:02:36.9]} 10... Nf6 {[%clk 0:02:47.9]} 11. Bf4
{[%clk 0:02:18.1]} 11... O-O {[%clk 0:02:39.6]} 12. dxc6 {[%clk 0:02:05.3]}
12... dxc6 {[%clk 0:02:35.5]} 13. Be5 {[%clk 0:02:05.1]} 13... Rfd8 {[%clk
0:02:34.4]} 14. Nd4 {[%clk 0:01:47.8]} 14... c5 {[%clk 0:02:29.4]} 15. Nc6
{[%clk 0:01:17]} 15... Re8 {[%clk 0:02:15.1]} 16. Bg3 {[%clk 0:00:40.4]} 16...
Bb7 {[%clk 0:02:06.4]} 17. Ne5 {[%clk 0:00:39]} 17... Nxe4 {[%clk 0:01:59.6]}
18. Rd7 {[%clk 0:00:34]} 18... Bxe5 {[%clk 0:01:54.7]} 19. Bxe5 {[%clk
0:00:31.1]} 19... Nxc3 {[%clk 0:01:54.1]} 20. Bxc3 {[%clk 0:00:24.9]} 20... Bc6
{[%clk 0:01:53.9]} 21. Rc7 {[%clk 0:00:24]} 21... Bd5 {[%clk 0:01:51.5]} 22. Bf6
{[%clk 0:00:21.6]} 22... Rec8 {[%clk 0:01:49.2]} 23. Rxc8+ {[%clk 0:00:19.5]}
23... Rxc8 {[%clk 0:01:48.9]} 24. a4 {[%clk 0:00:17.8]} 24... a5 {[%clk
0:01:48.6]} 25. Rd1 {[%clk 0:00:16.8]} 25... c4 {[%clk 0:01:48.1]} 26. h4 {[%clk
0:00:14.3]} 26... Kf8 {[%clk 0:01:45.5]} 27. h5 {[%clk 0:00:13.8]} 27... Ke8
{[%clk 0:01:45.6]} 28. hxg6 {[%clk 0:00:11.8]} 28... hxg6 {[%clk 0:01:41.8]} 29.
Kh2 {[%clk 0:00:12.1]} 29... Kd7 {[%clk 0:01:41.7]} 30. Kg3 {[%clk 0:00:11.5]}
30... Kc6 {[%clk 0:01:41.6]} 31. f3 {[%clk 0:00:09.6]} 31... b5 {[%clk
0:01:37.7]} 32. axb5+ {[%clk 0:00:09]} 32... Kxb5 {[%clk 0:01:37.7]} 33. Kf4
{[%clk 0:00:09.4]} 33... a4 {[%clk 0:01:37]} 34. Ke5 {[%clk 0:00:09.4]} 34...
Rc7 {[%clk 0:01:36.4]} 35. Kd6 {[%clk 0:00:09]} 35... Rb7 {[%clk 0:01:36.1]} 36.
Bc3 {[%clk 0:00:04]} 36... Rb6+ {[%clk 0:01:35]} 37. Ke5 {[%clk 0:00:03.9]}
37... Rb8 {[%clk 0:01:30.2]} 38. Kf6 {[%clk 0:00:03.8]} 38... Rb7 {[%clk
0:01:30.4]} 39. Rf1 {[%clk 0:00:03.6]} 39... Kc6 {[%clk 0:01:29.1]} 40. g4
{[%clk 0:00:03.6]} 40... Ra7 {[%clk 0:01:29.1]} 41. f4 {[%clk 0:00:03.5]} 41...
a3 {[%clk 0:01:29.3]} 42. bxa3 {[%clk 0:00:03.6]} 42... Rxa3 {[%clk 0:01:29.3]}
43. Bd4 {[%clk 0:00:03.8]} 43... Ra2 {[%clk 0:01:28.1]} 44. c3 {[%clk
0:00:04.7]} 44... Ra1 {[%clk 0:01:27.6]} 45. Rxa1 {[%clk 0:00:04.2]} 45... Kb5
{[%clk 0:01:27.1]} 46. f5 {[%clk 0:00:04.2]} 46... gxf5 {[%clk 0:01:26.7]} 47.
gxf5 {[%clk 0:00:04.7]} 47... exf5 {[%clk 0:01:27.6]} 48. Kxf5 {[%clk
0:00:04.9]} 48... Kc6 {[%clk 0:01:26.4]} 49. Ke5 {[%clk 0:00:05.8]} 49... Be6
{[%clk 0:01:25.2]} 50. Ra6+ {[%clk 0:00:05.9]} 50... Kd7 {[%clk 0:01:25.2]} 51.
Rxe6 {[%clk 0:00:06.8]} 51... fxe6 {[%clk 0:01:25.3]} 52. Bc5 {[%clk 0:00:06.4]}
52... Kc6 {[%clk 0:01:24.2]} 53. Bb4 {[%clk 0:00:06.6]} 53... Kd7 {[%clk
0:01:22.2]} 54. Kd4 {[%clk 0:00:06.7]} 54... Kc7 {[%clk 0:01:21.5]} 55. Kxc4
{[%clk 0:00:07.4]} 55... Kc6 {[%clk 0:01:21.8]} 56. Kd4 {[%clk 0:00:07.3]} 56...
Kb5 {[%clk 0:01:21.7]} 57. Ke5 {[%clk 0:00:07.4]} 57... Kc4 {[%clk 0:01:22.1]}
58. Kxe6 {[%clk 0:00:08.3]} 58... Kb5 {[%clk 0:01:22]} 59. Ke5 {[%clk
0:00:09.2]} 59... Kc4 {[%clk 0:01:22]} 60. Ke4 {[%clk 0:00:10.1]} 60... Kb5
{[%clk 0:01:21.4]} 61. Kd3 {[%clk 0:00:11]} 61... Kc6 {[%clk 0:01:21.6]} 62. Kc2
{[%clk 0:00:11.9]} 1-0

[Event "*** Titled Tuesday Blitz"]
[Site "Chess.com"]
[Date "2021.04.06"]
[Round "7"]
[White "Fortitudine"]
[Black "mary-sanna"]
[Result "1-0"]
[WhiteElo "2282"]
[BlackElo "2108"]
[TimeControl "180+1"]
[EndTime "11:18:36 PDT"]
[Termination "Fortitudine won on time"]

1. c4 {[%clk 0:03:00.9]} 1... c5 {[%clk 0:02:51.6]} 2. g3 {[%clk 0:03:00.1]}
2... e6 {[%clk 0:02:50.9]} 3. Bg2 {[%clk 0:02:58.8]} 3... d5 {[%clk 0:02:49.3]}
4. Nf3 {[%clk 0:02:59]} 4... Nf6 {[%clk 0:02:49.1]} 5. O-O {[%clk 0:02:58.3]}
5... Be7 {[%clk 0:02:47]} 6. cxd5 {[%clk 0:02:56.1]} 6... exd5 {[%clk
0:02:46.8]} 7. d4 {[%clk 0:02:56.6]} 7... cxd4 {[%clk 0:02:44.8]} 8. Nxd4 {[%clk
0:02:57.5]} 8... Nc6 {[%clk 0:02:44.8]} 9. Nc3 {[%clk 0:02:51.7]} 9... O-O
{[%clk 0:02:42.9]} 10. Nxc6 {[%clk 0:02:40.6]} 10... bxc6 {[%clk 0:02:42.4]} 11.
Be3 {[%clk 0:02:40.1]} 11... Re8 {[%clk 0:02:31.4]} 12. Rc1 {[%clk 0:02:37]}
12... Ng4 {[%clk 0:02:23.8]} 13. Bd4 {[%clk 0:02:13.6]} 13... h5 {[%clk
0:02:10]} 14. Na4 {[%clk 0:02:00.9]} 14... Bd7 {[%clk 0:02:05]} 15. Nc5 {[%clk
0:01:48.8]} 15... Bxc5 {[%clk 0:02:04.6]} 16. Bxc5 {[%clk 0:01:46]} 16... h4
{[%clk 0:02:03.1]} 17. e3 {[%clk 0:01:38.7]} 17... Ne5 {[%clk 0:01:52.5]} 18.
Bd4 {[%clk 0:01:31.1]} 18... h3 {[%clk 0:01:48.3]} 19. Bh1 {[%clk 0:01:28.1]}
19... Ng4 {[%clk 0:01:47.4]} 20. Bf3 {[%clk 0:01:20]} 20... Qg5 {[%clk
0:01:43.5]} 21. Qc2 {[%clk 0:01:06.1]} 21... Ne5 {[%clk 0:01:32.5]} 22. Bh1
{[%clk 0:01:04.9]} 22... a6 {[%clk 0:01:19]} 23. f4 {[%clk 0:01:02.5]} 23... Qg4
{[%clk 0:01:01.3]} 24. fxe5 {[%clk 0:00:59.4]} 24... Rab8 {[%clk 0:00:56.2]} 25.
b3 {[%clk 0:00:57.6]} 25... Re6 {[%clk 0:00:38.8]} 26. Qf5 {[%clk 0:00:48.4]}
26... Rg6 {[%clk 0:00:37]} 27. Qxg4 {[%clk 0:00:47.5]} 27... Bxg4 {[%clk
0:00:35.8]} 28. Bf3 {[%clk 0:00:48]} 28... Bf5 {[%clk 0:00:33.8]} 29. Rc5 {[%clk
0:00:42.3]} 29... Bd3 {[%clk 0:00:27.6]} 30. Rfc1 {[%clk 0:00:38.9]} 30... f6
{[%clk 0:00:15.6]} 31. Rxc6 {[%clk 0:00:30.6]} 31... fxe5 {[%clk 0:00:07.4]} 32.
Rxg6 {[%clk 0:00:25.6]} 32... Bxg6 {[%clk 0:00:08.3]} 33. Bxd5+ {[%clk
0:00:25.2]} 33... Kh7 {[%clk 0:00:07]} 34. Bxe5 {[%clk 0:00:23.5]} 34... Rb5
{[%clk 0:00:06.3]} 35. e4 {[%clk 0:00:21]} 35... a5 {[%clk 0:00:03.3]} 36. a4
{[%clk 0:00:19.7]} 36... Rb4 {[%clk 0:00:01.4]} 37. Bc3 {[%clk 0:00:19.1]} 1-0

[Event "*** Titled Tuesday Blitz"]
[Site "Chess.com"]
[Date "2021.04.06"]
[Round "7"]
[White "Ind1anStar"]
[Black "Romadk"]
[Result "1-0"]
[WhiteElo "2508"]
[BlackElo "2351"]
[TimeControl "180+1"]
[EndTime "11:18:37 PDT"]
[Termination "Ind1anStar won by checkmate"]

1. d4 {[%clk 0:03:00.4]} 1... Nf6 {[%clk 0:02:59.7]} 2. Nf3 {[%clk 0:02:59.9]}
2... d5 {[%clk 0:02:59.4]} 3. Bf4 {[%clk 0:03:00.1]} 3... c5 {[%clk 0:02:58.9]}
4. e3 {[%clk 0:03:00.2]} 4... Nc6 {[%clk 0:02:59.4]} 5. Nbd2 {[%clk 0:02:59.7]}
5... Bf5 {[%clk 0:02:52.7]} 6. dxc5 {[%clk 0:02:41.9]} 6... e6 {[%clk
0:02:44.8]} 7. Nd4 {[%clk 0:02:31.6]} 7... Bxc5 {[%clk 0:02:05.5]} 8. Nxf5
{[%clk 0:02:30.5]} 8... exf5 {[%clk 0:02:05.5]} 9. Bd3 {[%clk 0:02:30]} 9... d4
{[%clk 0:01:41.9]} 10. O-O {[%clk 0:02:01.3]} 10... dxe3 {[%clk 0:01:39.9]} 11.
Re1 {[%clk 0:01:49.1]} 11... O-O {[%clk 0:01:39]} 12. Bxe3 {[%clk 0:01:46.5]}
12... Bxe3 {[%clk 0:01:39]} 13. Rxe3 {[%clk 0:01:47.1]} 13... g6 {[%clk
0:01:34.5]} 14. h3 {[%clk 0:01:37.7]} 14... Nd5 {[%clk 0:01:32.8]} 15. Re1
{[%clk 0:01:37.3]} 15... Nf4 {[%clk 0:01:32.4]} 16. Bf1 {[%clk 0:01:36.3]} 16...
Qg5 {[%clk 0:01:30.6]} 17. Re3 {[%clk 0:01:29]} 17... Rad8 {[%clk 0:01:27.4]}
18. g3 {[%clk 0:01:08.6]} 18... Nh5 {[%clk 0:01:12.8]} 19. h4 {[%clk 0:00:50.7]}
19... Qf6 {[%clk 0:01:08.4]} 20. Rd3 {[%clk 0:00:49.1]} 20... f4 {[%clk
0:01:01.7]} 21. g4 {[%clk 0:00:42.5]} 21... Ng7 {[%clk 0:00:36.5]} 22. g5 {[%clk
0:00:19.2]} 22... Qxb2 {[%clk 0:00:35.2]} 23. Rb1 {[%clk 0:00:18]} 23... Qxa2
{[%clk 0:00:33.2]} 24. Rxb7 {[%clk 0:00:18.1]} 24... Ne5 {[%clk 0:00:31.8]} 25.
Rxd8 {[%clk 0:00:15.6]} 25... Rxd8 {[%clk 0:00:32.7]} 26. Bg2 {[%clk 0:00:12.5]}
26... Qa5 {[%clk 0:00:28.7]} 27. Qe1 {[%clk 0:00:07.8]} 27... Ng4 {[%clk
0:00:11.6]} 28. Nf3 {[%clk 0:00:06]} 28... Nf5 {[%clk 0:00:09]} 29. Qxa5 {[%clk
0:00:05.3]} 29... Rd1+ {[%clk 0:00:08.5]} 30. Ne1 {[%clk 0:00:05.7]} 30... f3
{[%clk 0:00:07.7]} 31. Bxf3 {[%clk 0:00:05.1]} 31... Ne5 {[%clk 0:00:07.5]} 32.
Qxe5 {[%clk 0:00:03.8]} 32... Nxh4 {[%clk 0:00:07.9]} 33. Rb8+ {[%clk 0:00:04]}
33... Rd8 {[%clk 0:00:06.8]} 34. Rxd8# {[%clk 0:00:04.6]} 1-0

[Event "*** Titled Tuesday Blitz"]
[Site "Chess.com"]
[Date "2021.04.06"]
[Round "7"]
[White "beautroll"]
[Black "2Tilted"]
[Result "0-1"]
[WhiteElo "2454"]
[BlackElo "2346"]
[TimeControl "180+1"]
[EndTime "11:18:37 PDT"]
[Termination "2Tilted won by resignation"]

1. e4 {[%clk 0:02:59.4]} 1... c5 {[%clk 0:02:59.5]} 2. Nf3 {[%clk 0:02:58.5]}
2... e6 {[%clk 0:03:00.1]} 3. d4 {[%clk 0:02:58.3]} 3... cxd4 {[%clk 0:03:01]}
4. Nxd4 {[%clk 0:02:59.2]} 4... Nc6 {[%clk 0:03:01.4]} 5. Nc3 {[%clk 0:02:57.8]}
5... Qc7 {[%clk 0:03:00.7]} 6. g3 {[%clk 0:02:54.8]} 6... a6 {[%clk 0:03:00.8]}
7. Bg2 {[%clk 0:02:54.2]} 7... Nf6 {[%clk 0:02:59.8]} 8. O-O {[%clk 0:02:51.4]}
8... Nxd4 {[%clk 0:02:59.2]} 9. Qxd4 {[%clk 0:02:51.2]} 9... Bc5 {[%clk
0:03:00.1]} 10. Qd3 {[%clk 0:02:50.8]} 10... d6 {[%clk 0:02:59.4]} 11. Bf4
{[%clk 0:02:43.3]} 11... Nd7 {[%clk 0:02:53.3]} 12. Na4 {[%clk 0:02:29.8]} 12...
e5 {[%clk 0:02:17.3]} 13. Be3 {[%clk 0:02:14.3]} 13... b5 {[%clk 0:01:38.1]} 14.
Nc3 {[%clk 0:02:01.1]} 14... Bb7 {[%clk 0:01:36.4]} 15. Rad1 {[%clk 0:01:51.1]}
15... Rd8 {[%clk 0:01:04]} 16. h4 {[%clk 0:01:20.7]} 16... O-O {[%clk
0:00:58.8]} 17. Kh1 {[%clk 0:01:12.7]} 17... Bxe3 {[%clk 0:00:53.4]} 18. fxe3
{[%clk 0:01:07.5]} 18... Nf6 {[%clk 0:00:50.3]} 19. Rxf6 {[%clk 0:00:56.3]}
19... gxf6 {[%clk 0:00:51.2]} 20. Rf1 {[%clk 0:00:47.5]} 20... Qe7 {[%clk
0:00:44.4]} 21. Qe2 {[%clk 0:00:41.6]} 21... Kh8 {[%clk 0:00:42.4]} 22. Qh5
{[%clk 0:00:37.7]} 22... Rg8 {[%clk 0:00:39.9]} 23. Kh2 {[%clk 0:00:37.7]} 23...
Rg7 {[%clk 0:00:29.6]} 24. a3 {[%clk 0:00:33.3]} 24... Rdg8 {[%clk 0:00:27.5]}
25. Rf3 {[%clk 0:00:30.5]} 25... d5 {[%clk 0:00:18.9]} 26. exd5 {[%clk
0:00:24.1]} 26... e4 {[%clk 0:00:18.8]} 27. Rf4 {[%clk 0:00:23.3]} 27... Rxg3
{[%clk 0:00:18.8]} 28. Bxe4 {[%clk 0:00:23.5]} 28... R3g7 {[%clk 0:00:16.4]} 29.
Rg4 {[%clk 0:00:19.1]} 29... f5 {[%clk 0:00:15.5]} 30. Qxf5 {[%clk 0:00:18]}
30... Qd6+ {[%clk 0:00:14.1]} 31. Kh3 {[%clk 0:00:17]} 31... Bc8 {[%clk
0:00:14.3]} 32. Qf6 {[%clk 0:00:02.5]} 32... Bxg4+ {[%clk 0:00:11.8]} 0-1

[Event "*** Titled Tuesday Blitz"]
[Site "Chess.com"]
[Date "2021.04.06"]
[Round "7"]
[White "Grineva_Marianna"]
[Black "alejogarcia1999"]
[Result "0-1"]
[WhiteElo "2256"]
[BlackElo "2420"]
[TimeControl "180+1"]
[EndTime "11:18:37 PDT"]
[Termination "alejogarcia1999 won on time"]

1. e4 {[%clk 0:02:59.6]} 1... c5 {[%clk 0:02:59.8]} 2. Nf3 {[%clk 0:02:52.5]}
2... e6 {[%clk 0:03:00]} 3. d4 {[%clk 0:02:52.4]} 3... cxd4 {[%clk 0:03:00.9]}
4. Nxd4 {[%clk 0:02:53]} 4... Nc6 {[%clk 0:03:01.5]} 5. Nc3 {[%clk 0:02:49.4]}
5... Nf6 {[%clk 0:03:01.2]} 6. Ndb5 {[%clk 0:02:47.4]} 6... d6 {[%clk
0:03:01.1]} 7. Bf4 {[%clk 0:02:40.6]} 7... e5 {[%clk 0:03:01.5]} 8. Bg5 {[%clk
0:02:41.1]} 8... a6 {[%clk 0:03:02.1]} 9. Na3 {[%clk 0:02:33]} 9... b5 {[%clk
0:03:03]} 10. Nd5 {[%clk 0:02:32]} 10... Be7 {[%clk 0:03:02.6]} 11. Bxf6 {[%clk
0:02:32.2]} 11... Bxf6 {[%clk 0:03:03.5]} 12. c3 {[%clk 0:02:33.1]} 12... Bg5
{[%clk 0:03:02.8]} 13. Nc2 {[%clk 0:02:32.5]} 13... Rb8 {[%clk 0:03:03.4]} 14.
Be2 {[%clk 0:02:26.9]} 14... O-O {[%clk 0:03:02.5]} 15. O-O {[%clk 0:02:26]}
15... Be6 {[%clk 0:02:56.3]} 16. Ncb4 {[%clk 0:02:15.7]} 16... Nxb4 {[%clk
0:02:44.8]} 17. Nxb4 {[%clk 0:02:16.6]} 17... Qb6 {[%clk 0:02:44.2]} 18. Nd5
{[%clk 0:02:00.8]} 18... Qb7 {[%clk 0:02:39.4]} 19. Qd3 {[%clk 0:01:48.3]} 19...
Bxd5 {[%clk 0:02:37.3]} 20. exd5 {[%clk 0:01:48.4]} 20... f5 {[%clk 0:02:31.6]}
21. Rad1 {[%clk 0:01:46.7]} 21... Qe7 {[%clk 0:02:14.3]} 22. Qh3 {[%clk
0:01:42.9]} 22... e4 {[%clk 0:01:59.9]} 23. b3 {[%clk 0:01:39.3]} 23... Rf6
{[%clk 0:01:57]} 24. c4 {[%clk 0:01:37.3]} 24... Bf4 {[%clk 0:01:43.9]} 25. g3
{[%clk 0:01:30.9]} 25... Be5 {[%clk 0:01:33.4]} 26. cxb5 {[%clk 0:01:27.6]}
26... axb5 {[%clk 0:01:32.9]} 27. Rc1 {[%clk 0:01:27.9]} 27... Qf7 {[%clk
0:01:23.2]} 28. Rfd1 {[%clk 0:01:17.2]} 28... Qa7 {[%clk 0:01:21.5]} 29. Rc2
{[%clk 0:01:12.2]} 29... Bd4 {[%clk 0:01:17.9]} 30. Bf1 {[%clk 0:01:02.3]} 30...
Bc5 {[%clk 0:01:12.9]} 31. Rdc1 {[%clk 0:00:53.9]} 31... b4 {[%clk 0:01:11.4]}
32. Re1 {[%clk 0:00:41.1]} 32... Rbf8 {[%clk 0:01:09.5]} 33. Qg2 {[%clk
0:00:40.1]} 33... f4 {[%clk 0:00:43.4]} 34. Rxe4 {[%clk 0:00:25.3]} 34... fxg3
{[%clk 0:00:43.1]} 35. Rxc5 {[%clk 0:00:14.1]} 35... Qxc5 {[%clk 0:00:35.9]} 36.
Qxg3 {[%clk 0:00:09.1]} 36... Rxf2 {[%clk 0:00:33.8]} 37. Rc4 {[%clk 0:00:04.1]}
37... Rxf1+ {[%clk 0:00:33]} 38. Kg2 {[%clk 0:00:04.6]} 38... Rg1+ {[%clk
0:00:32.9]} 39. Kh3 {[%clk 0:00:03.2]} 39... Rxg3+ {[%clk 0:00:33.8]} 40. hxg3
{[%clk 0:00:03.6]} 40... Qxd5 {[%clk 0:00:34.7]} 41. Kh2 {[%clk 0:00:01.7]}
41... Rf2+ {[%clk 0:00:33.5]} 42. Kh3 {[%clk 0:00:01.4]} 42... Qh5+ {[%clk
0:00:31.1]} 0-1

[Event "*** Titled Tuesday Blitz"]
[Site "Chess.com"]
[Date "2021.04.06"]
[Round "7"]
[White "TimKett"]
[Black "Trickster_Pony"]
[Result "1/2-1/2"]
[WhiteElo "2235"]
[BlackElo "1559"]
[TimeControl "180+1"]
[EndTime "11:18:37 PDT"]
[Termination "Game drawn by repetition"]

1. e4 {[%clk 0:03:00.9]} 1... c5 {[%clk 0:02:59.7]} 2. Nf3 {[%clk 0:02:59.6]}
2... g6 {[%clk 0:02:56.6]} 3. d4 {[%clk 0:02:55.6]} 3... cxd4 {[%clk 0:02:55.1]}
4. Nxd4 {[%clk 0:02:56.1]} 4... Bg7 {[%clk 0:02:55.1]} 5. Nc3 {[%clk 0:02:56.6]}
5... Nc6 {[%clk 0:02:54.9]} 6. Be3 {[%clk 0:02:56.9]} 6... Nf6 {[%clk
0:02:54.6]} 7. Bc4 {[%clk 0:02:56.7]} 7... O-O {[%clk 0:02:54.1]} 8. Bb3 {[%clk
0:02:52]} 8... d5 {[%clk 0:02:53.7]} 9. exd5 {[%clk 0:02:46.2]} 9... Na5 {[%clk
0:02:52]} 10. Qf3 {[%clk 0:02:15.3]} 10... Bg4 {[%clk 0:02:17.3]} 11. Qg3 {[%clk
0:02:14.3]} 11... Bh5 {[%clk 0:02:17.3]} 12. d6 {[%clk 0:01:34.1]} 12... exd6
{[%clk 0:02:07.5]} 13. O-O {[%clk 0:01:32.5]} 13... Nxb3 {[%clk 0:01:54.6]} 14.
axb3 {[%clk 0:01:32.5]} 14... Re8 {[%clk 0:01:43.2]} 15. Ndb5 {[%clk 0:01:30.4]}
15... d5 {[%clk 0:01:35.6]} 16. Nc7 {[%clk 0:01:26.6]} 16... Ne4 {[%clk
0:01:32.7]} 17. Nxe4 {[%clk 0:01:24.7]} 17... Be5 {[%clk 0:01:30]} 18. Bf4
{[%clk 0:01:23.5]} 18... Bxf4 {[%clk 0:01:28]} 19. Qxf4 {[%clk 0:01:22.5]} 19...
Rxe4 {[%clk 0:01:28]} 20. Qg3 {[%clk 0:01:15]} 20... Rg4 {[%clk 0:01:25.6]} 21.
Qe5 {[%clk 0:01:12.2]} 21... Rg5 {[%clk 0:01:18.2]} 22. Qf4 {[%clk 0:00:54.6]}
22... Rf5 {[%clk 0:01:05.4]} 23. Qg3 {[%clk 0:00:54.1]} 23... Rg5 {[%clk
0:01:05.1]} 24. Qf4 {[%clk 0:00:53.9]} 24... Rg4 {[%clk 0:00:56.3]} 25. Qe5
{[%clk 0:00:53.6]} 25... Rc8 {[%clk 0:00:55.8]} 26. Nxd5 {[%clk 0:00:49.8]}
26... Rxc2 {[%clk 0:00:40.3]} 27. Nf6+ {[%clk 0:00:46.3]} 27... Kf8 {[%clk
0:00:37.7]} 28. Nxg4 {[%clk 0:00:42.8]} 28... Bxg4 {[%clk 0:00:38]} 29. f3
{[%clk 0:00:27]} 29... Qd2 {[%clk 0:00:24.3]} 30. Qh8+ {[%clk 0:00:19.7]} 30...
Ke7 {[%clk 0:00:20.6]} 31. Qe5+ {[%clk 0:00:16.7]} 31... Be6 {[%clk 0:00:19.5]}
32. Qg3 {[%clk 0:00:16.8]} 32... Rxb2 {[%clk 0:00:15.1]} 33. Rad1 {[%clk
0:00:16.7]} 33... Qc2 {[%clk 0:00:13]} 34. Qd6+ {[%clk 0:00:15]} 34... Kf6
{[%clk 0:00:12.5]} 35. Qd4+ {[%clk 0:00:10]} 35... Kf5 {[%clk 0:00:10.5]} 36.
Qg4+ {[%clk 0:00:07.2]} 36... Kf6 {[%clk 0:00:09.8]} 37. Qd4+ {[%clk 0:00:07.6]}
37... Kf5 {[%clk 0:00:10.2]} 38. Qg4+ {[%clk 0:00:06.1]} 38... Kf6 {[%clk
0:00:10.5]} 39. Qd4+ {[%clk 0:00:06.2]} 1/2-1/2